Workbook

Sheet Лист1
A1: Школа | F1: Утвердил: | G1: должность | H1: Директор
A2: Типовое примерное меню приготавливаемых блюд | G2: фамилия | H2: Сафиева Ф.М.
A3: Возрастная категория | E3: 7-11 лет | G3: дата | H3: 1 | I3: 9 | J3: 2025
H4: день | I4: месяц | J4: год
A5: Неделя | B5: День недели | C5: Прием пищи | D5: Раздел меню | E5: Блюда | F5: Вес блюда, г | G5: Белки | H5: Жиры | I5: Углеводы | J5: Калорийность | K5: № рецептуры | L5: Цена
A6: 1 | B6: 1 | C6: Завтрак | D6: гор.блюдо | E6: Каша рисовая | F6: 250/70 | G6: 10.90 | H6: 11.30 | I6: 44.5 | J6: 325 | L6: 17.12
E7: Фрикадельки | F7: 100/5 | G7: 19.10 | H7: 1.80 | I7: 9.4 | J7: 162 | L7: 11.71
D8: гор.напиток | E8: Компот из свежих плодов | F8: 200 | G8: 0.50 | H8: 0.10 | I8: 31.2 | J8: 121 | L8: 4.85
D9: хлеб | E9: Хлеб пшеничный | F9: 50 | G9: 4.00 | H9: 27.50 | I9: 0.5 | J9: 130 | L9: 3.2
D10: фрукты | E10: Сок фруктовый | F10: 200 | G10: 0.00 | H10: 11.20 | I10: 0 | J10: 88 | L10: 24
E11: Салат из моркови | F11: 80 | G11: 0.80 | H11: 11.60 | I11: 3.6 | J11: 100 | L11: 10.21
D13: итого | F13: =SUM(F6:F11) -> 530 | G13: =SUM(G6:G11) -> 35.3 | H13: =SUM(H6:H11) -> 63.5 | I13: =SUM(I6:I11) -> 89.2 | J13: =SUM(J6:J11) -> 926 | L13: =SUM(L6:L12) -> 71.09
A14: =A6 -> 1 | B14: =B6 -> 1 | C14: Обед | D14: закуска
D15: 1 блюдо
D16: 2 блюдо
D17: гарнир
D18: напиток
D19: хлеб бел.
D20: хлеб черн.
D23: итого | F23: =SUM(F14:F22) -> 0 | G23: =SUM(G14:G22) -> 0 | H23: 0 | I23: 0 | J23: 0 | L23: =SUM(L14:L22) -> 0
A24: =A6 -> 1 | B24: =B6 -> 1 | C24: Итого за день: | F24: =F13+F23 -> 530 | G24: =G13+G23 -> 35.3 | H24: 63.5 | I24: 89.2 | J24: 926 | L24: =L13+L23 -> 71.09
A25: 1 | B25: 2 | C25: Завтрак | D25: гор.блюдо | E25: Плов из мяса птицы | F25: 180 | G25: 10.60 | H25: 15.88 | I25: 6.2 | J25: 162 | L25: 38.09
D27: гор.напиток | E27: Кофейный напиток | F27: 200 | G27: 0.10 | H27: 0.00 | I27: 9.1 | J27: 35 | L27: 3.8
D28: хлеб | E28: Хлеб пшеничный | F28: 50 | G28: 4.00 | H28: 27.50 | I28: 0.5 | J28: 130 | L28: 3.2
D29: фрукты | E29: Банан | F29: 200 | G29: 0.00 | H29: 0.00 | I29: 11.2 | J29: 45 | L29: 26
D32: итого | F32: =SUM(F25:F30) -> 630 | G32: =SUM(G25:G30) -> 14.7 | H32: =SUM(H25:H30) -> 43.38 | I32: =SUM(I25:I30) -> 27 | J32: =SUM(J25:J30) -> 372 | L32: =SUM(L25:L30) -> 71.09
A33: =A25 -> 1 | B33: =B25 -> 2 | C33: Обед | D33: закуска
D34: 1 блюдо
D35: 2 блюдо
D36: гарнир
D37: напиток
D38: хлеб бел.
D39: хлеб черн.
D42: итого | F42: =SUM(F33:F41) -> 0 | G42: =SUM(G33:G41) -> 0 | H42: =SUM(H33:H41) -> 0 | I42: =SUM(I33:I41) -> 0 | J42: =SUM(J33:J41) -> 0 | L42: 0
A43: =A25 -> 1 | B43: =B25 -> 2 | C43: Итого за день: | F43: =F32+F42 -> 630 | G43: =G32+G42 -> 14.7 | H43: =H32+H42 -> 43.38 | I43: =I32+I42 -> 27 | J43: =J32+J42 -> 372 | L43: 71.09
A44: 1 | B44: 3 | C44: Завтрак | D44: гор.блюдо | E44: Каша "Геркулес" | F44: 150/5 | G44: 4.86 | H44: 6.72 | I44: 26.35 | J44: 186 | L44: 15.72
E45: Винегрет овощной | F45: 80 | L45: 7.71
D46: гор.напиток | E46: Сыр порционный | F46: 20 | G46: 19.10 | H46: 1.80 | I46: 9.4 | J46: 130 | L46: 16.36
D47: хлеб | E47: Чай с сахаром | F47: 200 | G47: 0.10 | H47: 0.00 | I47: 9.1 | J47: 35 | L47: 4.1
D48: фрукты | E48: Хлеб пшеничный | F48: 50 | G48: 4.00 | H48: 27.50 | I48: 0.5 | J48: 130 | L48: 3.2
L49: 24
E50: Йогурт | F50: 100 | G50: 2.80 | H50: 3.20 | I50: 10.1 | J50: 82
D51: итого | F51: =SUM(F44:F50) -> 450 | G51: =SUM(G44:G50) -> 30.86 | H51: =SUM(H44:H50) -> 39.22 | I51: =SUM(I44:I50) -> 55.45 | J51: =SUM(J44:J50) -> 563 | L51: =SUM(#REF!) -> 
A52: =A44 -> 1 | B52: =B44 -> 3 | C52: Обед | D52: закуска
D53: 1 блюдо
D54: 2 блюдо
D55: гарнир
D56: напиток
D57: хлеб бел.
D58: хлеб черн.
D61: итого | F61: =SUM(F52:F60) -> 0 | G61: =SUM(G52:G60) -> 0 | H61: =SUM(H52:H60) -> 0 | I61: =SUM(I52:I60) -> 0 | J61: =SUM(J52:J60) -> 0 | L61: 0
A62: =A44 -> 1 | B62: =B44 -> 3 | C62: Итого за день: | F62: =F51+F61 -> 450 | G62: =G51+G61 -> 30.86 | H62: =H51+H61 -> 39.22 | I62: =I51+I61 -> 55.45 | J62: =J51+J61 -> 563
A63: 1 | B63: 4 | C63: Завтрак | D63: гор.блюдо | E63: Макароны отварные | F63: 160 | G63: 3.51 | H63: 5.42 | I63: 23.56 | J63: 177 | L63: 8.77
E64: Гуляш из мяса птицы | F64: 45/45 | G64: 13.78 | H64: 3.18 | I64: 15.03 | J64: 203 | L64: 31.86
D65: гор.напиток | E65: Кисель | F65: 200 | G65: 0.00 | H65: 0.00 | I65: 20 | J65: 76 | L65: 7.76
D66: хлеб | E66: Хлеб пшеничный | F66: 50 | G66: 4.00 | H66: 27.50 | I66: 0.5 | J66: 130 | L66: 3.2
D67: фрукты | E67: Яблоко | F67: 100 | G67: 0.40 | H67: 0.40 | I67: 9.8 | J67: 47 | L67: 19.5
D70: итого | F70: =SUM(F63:F68) -> 510 | G70: =SUM(G63:G68) -> 21.69 | H70: =SUM(H63:H68) -> 36.5 | I70: =SUM(I63:I68) -> 68.89 | J70: =SUM(J63:J68) -> 633 | L70: =SUM(L63:L69) -> 71.09
A71: =A63 -> 1 | B71: =B63 -> 4 | C71: Обед | D71: закуска
D72: 1 блюдо
D73: 2 блюдо
D74: гарнир
D75: напиток
D76: хлеб бел.
D77: хлеб черн.
D80: итого | F80: =SUM(F71:F79) -> 0 | G80: =SUM(G71:G79) -> 0 | H80: =SUM(H71:H79) -> 0 | I80: =SUM(I71:I79) -> 0 | J80: =SUM(J71:J79) -> 0 | L80: 0
A81: =A63 -> 1 | B81: =B63 -> 4 | C81: Итого за день: | F81: =F70+F80 -> 510 | G81: =G70+G80 -> 21.69 | H81: =H70+H80 -> 36.5 | I81: =I70+I80 -> 68.89 | J81: =J70+J80 -> 633 | L81: 71.09
A82: 1 | B82: 5 | C82: Завтрак | D82: гор.блюдо | E82: Каша гречневая | F82: 180 | G82: 4.55 | H82: 7.88 | I82: 46.57 | J82: 229 | L82: 23.99
E83: Салат из белокачанной капусты | F83: 80 | G83: 1.90 | H83: 5.70 | I83: 7.3 | J83: 88 | L83: 13.8
D84: гор.напиток | E84: Чай с сахаром | F84: 200 | G84: 0.10 | H84: 0.00 | I84: 9.1 | J84: 35 | L84: 4.1
D85: хлеб | E85: Хлеб пшеничный | F85: 50 | G85: 4.00 | H85: 27.50 | I85: 0.5 | J85: 130 | L85: 3.2
D86: фрукты | E86: Яблоко | F86: 200 | G86: 0.40 | H86: 0.40 | I86: 9.8 | J86: 47 | L86: 26
D89: итого | F89: =SUM(F82:F88) -> 710 | G89: =SUM(G82:G88) -> 10.95 | H89: =SUM(H82:H88) -> 41.48 | I89: =SUM(I82:I88) -> 73.27 | J89: =SUM(J82:J88) -> 529 | L89: =SUM(L82:L88) -> 71.09
A90: =A82 -> 1 | B90: =B82 -> 5 | C90: Обед | D90: закуска
D91: 1 блюдо
D92: 2 блюдо
D93: гарнир
D94: напиток
D95: хлеб бел.
D96: хлеб черн.
D99: итого | F99: =SUM(F90:F98) -> 0 | G99: =SUM(G90:G98) -> 0 | H99: =SUM(H90:H98) -> 0 | I99: =SUM(I90:I98) -> 0 | J99: =SUM(J90:J98) -> 0 | L99: 0
A100: =A82 -> 1 | B100: =B82 -> 5 | C100: Итого за день: | F100: =F89+F99 -> 710 | G100: =G89+G99 -> 10.95 | H100: =H89+H99 -> 41.48 | I100: =I89+I99 -> 73.27 | J100: =J89+J99 -> 529 | L100: 71.09
A101: 2 | B101: 1 | C101: Завтрак | D101: гор.блюдо | E101: Каша "Артек" молочная | F101: 180/5 | G101: 19.45 | H101: 242.00 | I101: 7.2 | J101: 7.2 | L101: 27
E102: Салат из свежих помидоров и огурцов | F102: 80 | G102: 11.74 | H102: 55.00 | I102: 0.8 | J102: 4.5 | L102: 13.22
D103: гор.напиток | E103: Чай с сахаром | F103: 200 | G103: 4.05 | H103: 35.00 | I103: 0.1 | J103: 0 | L103: 9.29
D104: хлеб | E104: Хлеб пшеничный | F104: 50 | G104: 3.20 | H104: 130.00 | I104: 4 | J104: 0.5 | L104: 3.2
D105: фрукты | E105: Фрукты | F105: 200 | G105: 26.00 | H105: 45.00 | I105: 0 | J105: 0 | L105: 31.6
D108: итого | F108: =SUM(F101:F107) -> 530 | G108: =SUM(G101:G107) -> 64.44 | H108: 507 | I108: 12.1 | J108: 12.2 | L108: =SUM(L101:L107) -> 71.09
A109: =A101 -> 2 | B109: =B101 -> 1 | C109: Обед | D109: закуска
D110: 1 блюдо
D111: 2 блюдо
D112: гарнир
D113: напиток
D114: хлеб бел.
D115: хлеб черн.
D118: итого | F118: =SUM(F109:F117) -> 0 | G118: =SUM(G109:G117) -> 0 | H118: 0 | I118: 0 | J118: 0 | L118: =SUM(L109:L117) -> 0
A119: =A101 -> 2 | B119: =B101 -> 1 | C119: Итого за день: | F119: =F108+F118 -> 530 | G119: =G108+G118 -> 64.44 | H119: =H108+H118 -> 507 | I119: =I108+I118 -> 12.1 | J119: =J108+J118 -> 12.2 | L119: 71.09
A120: 2 | B120: 2 | C120: Завтрак | D120: гор.блюдо | E120: Каша пшенная | F120: 180/5 | G120: 5.20 | H120: 36.10 | I120: 7.2 | J120: 231 | L120: 17.03
E121: Фрикадельки | F121: 80 | G121: 11.30 | H121: 9.80 | I121: 8.2 | J121: 162 | L121: 11.8
D122: гор.напиток | E122: Компот из свежих плодов | F122: 200 | G122: 0.10 | H122: 9.10 | I122: 0 | J122: 35 | L122: 4.85
D123: хлеб | E123: Хлеб пшеничный | F123: 50 | G123: 4.00 | H123: 27.50 | I123: 0.5 | J123: 130 | L123: 3.2
D124: фрукты | E124: Салат из моркови | F124: 80 | G124: 0.80 | H124: 11.60 | I124: 3.6 | J124: 100 | L124: 10.21
E125: Сок фруктовый | F125: 200 | G125: 0.00 | H125: 11.20 | I125: 0 | J125: 88 | L125: 24
D127: итого | F127: =SUM(F120:F126) -> 610 | G127: =SUM(G120:G126) -> 21.4 | H127: 105.3 | I127: 19.5 | J127: 746 | L127: =SUM(L120:L126) -> 71.09
A128: =A120 -> 2 | B128: =B120 -> 2 | C128: Обед | D128: закуска
D129: 1 блюдо
D130: 2 блюдо
D131: гарнир
D132: напиток
D133: хлеб бел.
D134: хлеб черн.
D137: итого | F137: =SUM(F128:F136) -> 0 | G137: =SUM(G128:G136) -> 0 | H137: 0 | I137: 0 | J137: 0 | L137: =SUM(L128:L136) -> 0
A138: =A120 -> 2 | B138: =B120 -> 2 | C138: Итого за день: | F138: =F127+F137 -> 610 | G138: =G127+G137 -> 21.4 | H138: =H127+H137 -> 105.3 | I138: =I127+I137 -> 19.5 | J138: =J127+J137 -> 746 | L138: 71.09
A139: 2 | B139: 3 | C139: Завтрак | D139: гор.блюдо | E139: Суп картофельный с бобами | F139: 250/20 | G139: 7.90 | H139: 4.30 | I139: 31.5 | J139: 199 | L139: 37.79
D141: гор.напиток | E141: Чай с сахаром | F141: 200 | G141: 0.10 | H141: 0.00 | I141: 9.1 | J141: 35 | L141: 4.1
D142: хлеб | E142: Хлеб пшеничный | F142: 50 | G142: 4.00 | H142: 27.50 | I142: 0.5 | J142: 130 | L142: 3.2
D143: фрукты | E143: Фрукты | F143: 100 | G143: 14.40 | H143: 108.40 | I143: 10.9 | J143: 589 | L143: 26
D146: итого | F146: =SUM(F139:F145) -> 350 | G146: =SUM(G139:G145) -> 26.4 | H146: 140.2 | I146: 52 | J146: 953 | L146: =SUM(L139:L145) -> 71.09
A147: =A139 -> 2 | B147: =B139 -> 3 | C147: Обед | D147: закуска
D148: 1 блюдо
D149: 2 блюдо
D150: гарнир
D151: напиток
D152: хлеб бел.
D153: хлеб черн.
D156: итого | F156: =SUM(F147:F155) -> 0 | G156: =SUM(G147:G155) -> 0 | H156: 0 | I156: 0 | J156: 0 | L156: =SUM(L147:L155) -> 0
A157: =A139 -> 2 | B157: =B139 -> 3 | C157: Итого за день: | F157: =F146+F156 -> 350 | G157: =G146+G156 -> 26.4 | H157: =H146+H156 -> 140.2 | I157: =I146+I156 -> 52 | J157: =J146+J156 -> 953 | L157: 71.09
A158: 2 | B158: 4 | C158: Завтрак | D158: гор.блюдо | E158: Макароны отварные | F158: 160 | G158: 3.51 | H158: 5.42 | I158: 23.56 | J158: 177 | L158: 8.77
E159: Сыр порциями | F159: 20 | G159: 2.63 | H159: 2.63 | I159: 0 | J159: 35 | L159: 16.36
D160: гор.напиток | E160: Кисель | F160: 200 | G160: 0.00 | H160: 0.00 | I160: 20 | J160: 76 | L160: 7.76
D161: хлеб | E161: Хлеб пшеничный | F161: 50 | G161: 4.00 | H161: 27.50 | I161: 0.5 | J161: 130 | L161: 3.2
D162: фрукты | E162: Йогурт | F162: 100 | G162: 2.80 | H162: 3.20 | I162: 10.1 | J162: 8.2 | L162: 35
D165: итого | F165: =SUM(F158:F164) -> 530 | G165: =SUM(G158:G164) -> 12.94 | H165: 38.75 | I165: 54.16 | J165: 426.2 | L165: =SUM(L158:L164) -> 71.09
A166: =A158 -> 2 | B166: =B158 -> 4 | C166: Обед | D166: закуска
D167: 1 блюдо
D168: 2 блюдо
D169: гарнир
D170: напиток
D171: хлеб бел.
D172: хлеб черн.
D175: итого | F175: =SUM(F166:F174) -> 0 | G175: =SUM(G166:G174) -> 0 | H175: 0 | I175: 0 | J175: 0 | L175: =SUM(L166:L174) -> 0
A176: =A158 -> 2 | B176: =B158 -> 4 | C176: Итого за день: | F176: =F165+F175 -> 530 | G176: =G165+G175 -> 12.94 | H176: =H165+H175 -> 38.75 | I176: =I165+I175 -> 54.16 | J176: =J165+J175 -> 426.2 | L176: 71.09
A177: 2 | B177: 5 | C177: Завтрак | D177: гор.блюдо | E177: Плов из мяса птицы | F177: 180 | G177: 10.60 | H177: 15.88 | I177: 6.2 | J177: 162 | L177: 38.09
D179: гор.напиток | E179: Какао с молоком | F179: 200 | G179: 0.00 | H179: 20.00 | I179: 0 | J179: 76 | L179: 5.8
D180: хлеб | E180: Хлеб пшеничный | F180: 50 | G180: 4.00 | H180: 27.50 | I180: 0.5 | J180: 130 | L180: 3.2
D181: фрукты | E181: Фрукты | F181: 100 | G181: 0.40 | H181: 0.40 | I181: 9.8 | J181: 47 | L181: 24
D184: итого | F184: =SUM(F177:F183) -> 530 | G184: =SUM(G177:G183) -> 15 | H184: =SUM(H177:H183) -> 63.78 | I184: =SUM(I177:I183) -> 16.5 | J184: =SUM(J177:J183) -> 415 | L184: =SUM(L177:L183) -> 71.09
A185: =A177 -> 2 | B185: =B177 -> 5 | C185: Обед | D185: закуска
D186: 1 блюдо
D187: 2 блюдо
D188: гарнир
D189: напиток
D190: хлеб бел.
D191: хлеб черн.
D194: итого | F194: =SUM(F185:F193) -> 0 | G194: =SUM(G185:G193) -> 0 | H194: 0 | I194: 0 | J194: 0 | L194: =SUM(L185:L193) -> 0
A195: =A177 -> 2 | B195: =B177 -> 5 | C195: Итого за день: | F195: =F184+F194 -> 530 | G195: =G184+G194 -> 15 | H195: =H184+H194 -> 63.78 | I195: =I184+I194 -> 16.5 | J195: =J184+J194 -> 415 | L195: 71.09
C196: Среднее значение за период: | F196: =(F24+F43+F62+F81+F100+F119+F138+F157+F176+F195)/(IF(F24=0,0,1)+IF(F43=0,0,1)+IF(F62=0,0,1)+IF(F81=0,0,1)+IF(F100=0,0,1)+IF(F119=0,0,1)+IF(F138=0,0,1)+IF(F157=0,0,1)+IF(F176=0,0,1)+IF(F195=0,0,1)) -> 538 | G196: =(G24+G43+G62+G81+G100+G119+G138+G157+G176+G195)/(IF(G24=0,0,1)+IF(G43=0,0,1)+IF(G62=0,0,1)+IF(G81=0,0,1)+IF(G100=0,0,1)+IF(G119=0,0,1)+IF(G138=0,0,1)+IF(G157=0,0,1)+IF(G176=0,0,1)+IF(G195=0,0,1)) -> 25.368 | H196: 107.911 | I196: 46.807 | J196: 557.54 | L196: =(L24+L43+L62+L81+L100+L119+L138+L157+L176+L195)/(IF(L24=0,0,1)+IF(L43=0,0,1)+IF(L62=0,0,1)+IF(L81=0,0,1)+IF(L100=0,0,1)+IF(L119=0,0,1)+IF(L138=0,0,1)+IF(L157=0,0,1)+IF(L176=0,0,1)+IF(L195=0,0,1)) -> 
